Cogmind - Beta 14 *** ADVENTURER MODE // 2024.09.24 @ 13:43:02 Player: Ms. V3-11A Result: Destroyed by D-53 Grenadier with Mini Grenade Launcher Performance ------------- Evolutions (2) 1000 Regions Visited (5) 1000 Robots Destroyed (98) 490 Value Destroyed (2873) 2873 Prototype IDs (11) 220 Alien Tech Used (0) 0 Bonus (212) 212 TOTAL SCORE: 5795 Bonus ------- High Alert Combat Kills 84 Follower Combat Kills 128 Cogmind --------- Core Integrity 0/550 Matter 296/300 Energy 150/150 System Corruption 0% Temperature Cool (0) Movement Treading (238) Ox1 Location -8/Recycling Parts ------- > --- POWER (1) -------- Light Angular Momentum Engine > --- PROPULSION (4) --- Light Treads Light Treads Armored Treads Advanced Treads > --- UTILITY (4) ------ Advanced Heat Sink Huge Storage Unit Hardened Medium Armor Plating Improved Light Armor Plating > --- WEAPON (2) ------- Enhanced Autogun > --- INVENTORY (25) --- Light Nuclear Core Light Nuclear Core Light Treads Light Treads Light Treads Light Treads Advanced Treads Advanced Treads Disposable Heat Sink High-capacity Storage Unit Compact Matter Pod (150) Trap Scanner Improved Signal Interpreter Utility Shielding Light Armor Plating Hardened Medium Armor Plating Hacking Suite Hacking Suite Hacking Suite Heavy EM Pulse Gun Spread Laser High-powered Shotgun Improved Light Cannon Advanced EMP Blaster Heavy Mace Peak State ------------ > --- POWER ------------ Light Angular Momentum Engine > --- PROPULSION ------- Light Treads Light Treads Light Treads Advanced Treads > --- UTILITY ---------- Advanced Heat Sink High-capacity Storage Unit Hardened Light Armor Plating Hardened Medium Armor Plating > --- WEAPON ----------- Advanced Beam Rifle Enhanced Autogun > --- INVENTORY -------- Light Nuclear Core Light Nuclear Core Light Treads Light Treads Light Treads Carbon-fiber Leg Disposable Heat Sink Large Storage Unit Improved Signal Interpreter Utility Shielding Light Armor Plating Light Armor Plating Hacking Suite Heavy EM Pulse Gun Spread Laser High-powered Shotgun Improved Light Cannon Advanced EMP Blaster Heavy Mace [Rating: 34] Favorites ----------- Power Light Angular Momentum Engine Engine Light Angular Momentum Engine Power Core Light Nuclear Core Propulsion Light Treads Treads Light Treads Leg Aluminum Leg Wheel Wheel Utility Hardened Light Armor Plating Device Advanced Heat Sink Storage Huge Storage Unit Hackware Hacking Suite Protection Hardened Light Armor Plating Weapon Enhanced Autogun Energy Gun Medium Laser Energy Cannon Beam Cannon Ballistic Gun Enhanced Autogun Ballistic Cannon Improved Light Cannon Impact Weapon Heavy Mace Build | -11 -10 -9 -8 -8 -8 ------- Run | Yrd Mat Mat Mat Sto Rec Slots Evolved 4 | . . 2 2 . . Power . | . . . . . . Propulsion 2 | . . 1 1 . . Utility 2 | . . 1 1 . . Weapon . | . . . . . . Parts Attached 89 | 2 5 28 29 19 6 Power 10 | . . 6 1 3 . Engine 7 | . . 6 . 1 . Core 3 | . . . 1 2 . Reactor . | . . . . . . Propulsion 37 | 2 . 11 12 8 4 Treads 33 | 2 . 11 8 8 4 Leg 2 | . . . 2 . . Wheel 2 | . . . 2 . . Hover . | . . . . . . Flight . | . . . . . . Utility 25 | . 3 6 7 7 2 Device 6 | . 2 2 2 . . Storage 4 | . 1 1 . 2 . Processor . | . . . . . . Hackware 2 | . . . 2 . . Protection 13 | . . 3 3 5 2 Artifact . | . . . . . . Weapon 17 | . 2 5 9 1 . Energy Gun 4 | . 1 . 3 . . Energy Cannon 1 | . . . 1 . . Ballistic Gun 9 | . 1 3 4 1 . Ballistic Cannon 2 | . . 2 . . . Launcher . | . . . . . . Special Weapon . | . . . . . . Impact Weapon 1 | . . . 1 . . Slashing Weapon . | . . . . . . Piercing Weapon . | . . . . . . Special Melee Weapon . | . . . . . . Unidentified Prototypes 3 | . . . 3 . . Parts Lost 13 | . . . 10 3 . Power 2 | . . . 1 1 . Propulsion 7 | . . . 6 1 . Utility 2 | . . . 2 . . Weapon 2 | . . . 1 1 . Highest Loss Streak 9 | . . . 9 1 . To Critical Strikes . | . . . . . . Average Slot Usage (%) 92 | . 87 99 86 98 90 Engine 8 | . 14 10 2 1 9 Core 1 | . . . 6 7 . Treads 31 | . 28 33 18 35 36 Device 8 | . 2 11 11 9 9 Storage 10 | . 14 11 9 9 9 Hackware 2 | . . . 8 5 . Protection 10 | . . 10 6 11 18 Energy Gun 5 | . 16 3 3 8 . Ballistic Gun 9 | . 11 11 8 8 9 Ballistic Cannon 2 | . . 7 2 . . Peak Build Rating 34 | 6 7 15 30 34 34 Average Rating 20 | 5 6 13 22 30 31 On Entrance 15 | 6 6 7 15 30 30 Naked Turns . | . . . . . . Heaviest Build 108 | 10 18 40 40 108 106 Greatest Support 82 | 40 40 60 82 82 82 Greatest Overweight (x) 7 | . . . 7 1 1 Average Overweight (x) . | . . . . . 1 Largest Inventory Capacity 25 | 8 10 15 15 25 25 Average Capacity 16 | 8 9 11 15 19 25 Most Carried 25 | 6 9 15 15 21 25 Average Carried 15 | 4 5 11 14 16 24 Final Capacity 25 | 8 10 15 15 25 25 Final Carried 25 | 2 9 15 15 21 25 Class Distribution -------------------- 42% | Scavenger-Mutant 29% | Mutant 19% | Commander-Mutant 8% | Hacker-Mutant Dominant Class ---------------- Mutant | -10/Materials Scavenger-Mutant | -9/Materials Hacker-Mutant | -8/Materials Scavenger-Mutant | -8/Storage Commander-Mutant | -8/Recycling Resources | -11 -10 -9 -8 -8 -8 ----------- Run | Yrd Mat Mat Mat Sto Rec Matter Collected 2043 | 200 105 466 571 577 124 Remotely . | . . . . . . Salvage Created 3832 | . 186 1293 1129 829 395 Parts 197 | . 16 81 54 38 8 Haulers Intercepted 5 | . 1 2 2 . . Recyclers Shooed 4 | . 1 3 . . . Parts Field Recycled . | . . . . . . Retrieved Matter . | . . . . . . Parts Self-Destructed . | . . . . . . Prevented . | . . . . . . Kills | -11 -10 -9 -8 -8 -8 ------- Run | Yrd Mat Mat Mat Sto Rec Combat Hostiles Destroyed 77 | . 7 26 22 17 5 Melee 2 | . . . 2 . . Guns 61 | . 7 19 13 17 5 Cannons 9 | . . 7 2 . . Classes Destroyed 12 | . 3 5 2 1 1 Worker 4 | . . 2 2 . . Builder 2 | . . . 1 . 1 Hauler 5 | . 1 2 2 . . Recycler 7 | . . 3 1 1 2 Mechanic 1 | . . . 1 . . Operator 1 | . . 1 . . . Watcher 1 | . . 1 . . . Swarmer 18 | . 6 5 4 3 . Grunt 35 | . 1 14 12 6 2 Protector 1 | . . . . . 1 Sentry 21 | . . 7 6 7 1 Hunter 2 | . . . . 1 1 Best Kill Streak 11 | . 3 7 11 5 3 Combat Bots Only 8 | . 3 6 8 4 3 Max Kills in Single Turn 2 | . 1 2 2 1 1 Gunslinging 1 | . . . 1 . . Exploded . | . . . . . . Melee 1 | . . . 1 . . Uniques/NPCs Destroyed . | . . . . . . Combat | -11 -10 -9 -8 -8 -8 -------- Run | Yrd Mat Mat Mat Sto Rec Hostile Shots Fired 508 | . 25 109 260 94 20 Missed 134 | . 7 30 66 25 6 Damage Taken 4131 | . 114 760 2240 844 173 Core 638 | . 5 83 446 81 23 Absorbed by Shields . | . . . . . . Ignored by Resistances 1195 | . 38 222 639 243 53 Regen/Repaired (Parts) 303 | . . . 146 157 . Core Remaining (%) 92 | 100 98 79 . . . Volleys Fired 225 | . 17 76 62 59 11 Largest 2 | . 2 2 2 2 1 Hottest 86 | . 80 73 86 86 25 Shots Fired 436 | . 32 152 123 118 11 Gun 377 | . 32 105 111 118 11 Cannon 59 | . . 47 12 . . Launcher . | . . . . . . Special . | . . . . . . Kinetic 278 | . 14 123 71 59 11 Thermal 158 | . 18 29 52 59 . Explosive . | . . . . . . Electromagnetic . | . . . . . . Robot Hit Streak 28 | . 6 22 19 28 19 Robot Miss Streak 2 | . 1 2 2 1 1 Penetration Max . | . . . . . . Secondary Targets 12 | . 2 2 4 4 . Max Gunslinging Chain 1 | . 1 1 1 1 . Shots Hit Robots 369 | . 22 124 115 98 10 Core Hits 134 | . 10 52 34 31 7 Critical Kills 1 | . . 1 . . . Critical Parts Destroyed 2 | . . . 2 . . Critical Strikes 17 | . 3 3 7 4 . Burn 14 | . 3 2 5 4 . Destroy 1 | . . 1 . . . Smash 2 | . . . 2 . . Melee Attacks 11 | . . . 11 . . Impact 11 | . . . 11 . . Slashing . | . . . . . . Piercing . | . . . . . . Sneak Attacks . | . . . . . . Combat Hostiles . | . . . . . . Follow-up Attacks . | . . . . . . Damage Inflicted 6746 | . 290 2073 2364 1791 228 Guns 5231 | . 274 1300 1701 1777 179 Cannons 1011 | . . 773 238 . . Explosions . | . . . . . . Melee 404 | . . . 404 . . Ramming 100 | . 16 . 21 14 49 Kinetic 3819 | . 103 1735 985 817 179 Thermal 2423 | . 171 338 954 960 . Explosive . | . . . . . . Electromagnetic . | . . . . . . Impact 404 | . . . 404 . . Slashing . | . . . . . . Piercing . | . . . . . . Highest Corruption . | . . . . . . Average Corruption . | . . . . . . Corruption Purged . | . . . . . . Corruption Blocked . | . . . . . . Overload Shots . | . . . . . . Overflow Damage 157 | . . 1 156 . . Projectiles 1 | . . 1 . . . Explosions . | . . . . . . Melee 156 | . . . 156 . . Knockbacks 14 | . . 7 7 . . Impact 1 | . . . 1 . . Kinetic 12 | . . 7 5 . . Secondary 1 | . . . 1 . . Self-Inflicted Damage . | . . . . . . Shots . | . . . . . . Rammed 11 | . 2 . 4 3 2 Targets Rammed 16 | . 2 . 6 3 5 Kicked . | . . . . . . Crushed 5 | . . . 2 . 3 Highest Temperature 427 | . 66 427 117 50 . Average Temperature 45 | . 17 72 31 11 . Received Heat Transfer 2136 | . 12 387 1341 333 63 Effects 2 | . . 2 . . . Shutdowns 1 | . . 1 . . . Energy Bleed 1 | . . 1 . . . Siege Activations . | . . . . . . Robots Corrupted 5 | . . . 5 . . Combat Hostiles 5 | . . . 5 . . Parts Fried 3 | . . . 3 . . Impact Corruptions 6 | . . . 6 . . Robots Melted . | . . . . . . Combat Hostiles . | . . . . . . Parts Melted 15 | . 1 4 3 7 . Heat Transferred 6057 | . 692 1147 2146 2072 . Parts Sabotaged . | . . . . . . Parts Stolen . | . . . . . . Parts Stripped . | . . . . . . Power Chain Reactions . | . . . . . . Alert | -11 -10 -9 -8 -8 -8 ------- Run | Yrd Mat Mat Mat Sto Rec Peak Influence 527 | . 117 400 513 527 138 Initial 141 | . . . 137 141 100 Average 157 | . 40 213 249 375 39 Maximum Alert Level 2 | . . 2 2 2 . Low Security (%) 66 | 100 100 44 41 13 100 Level 1 25 | . . 54 53 31 . Level 2 8 | . . 1 4 55 . Level 3 . | . . . . . . Level 4 . | . . . . . . Level 5 . | . . . . . . High Security . | . . . . . . Max Security . | . . . . . . Squads Dispatched 14 | . . 6 3 5 . Investigation 6 | . . 4 1 1 . Extermination . | . . . . . . Reinforcement 4 | . . 2 1 1 . Assault . | . . . . . . Garrison 4 | . . . 1 3 . Intercept . | . . . . . . Searches Triggered . | . . . . . . Construction Impeded . | . . . . . . Haulers Reinforced . | . . . . . . Active Scanning Responses . | . . . . . . Cargo Convoy Interrupts . | . . . . . . Stealth | -11 -10 -9 -8 -8 -8 --------- Run | Yrd Mat Mat Mat Sto Rec Distress Signals 10 | . 1 4 3 2 . Communications Jammed . | . . . . . . Distress Signals . | . . . . . . Times Spotted 126 | . 15 39 37 24 11 Peak Tracking Total 9 | . 3 7 9 4 4 Tactical Retreats 5 | . 1 1 3 . . Traps | -11 -10 -9 -8 -8 -8 ------- Run | Yrd Mat Mat Mat Sto Rec Traps Triggered 9 | . 1 2 1 5 . Indirectly . | . . . . . . Trap Hack Attempts . | . . . . . . Triggered . | . . . . . . Disarmed . | . . . . . . Reprogrammed . | . . . . . . Reused . | . . . . . . Traps Extracted . | . . . . . . Installed . | . . . . . . Triggered . | . . . . . . Machines | -11 -10 -9 -8 -8 -8 ---------- Run | Yrd Mat Mat Mat Sto Rec Machines Disabled 3 | . . 2 . 1 . Max in Single Turn 1 | . . 1 . 1 . Garrison Access 2 | . . . 1 1 . Machines Repaired . | . . . . . . Machines Dismantled . | . . . . . . Machines Sabotaged . | . . . . . . Overloaded Fab Kills . | . . . . . . Hacking | -11 -10 -9 -8 -8 -8 --------- Run | Yrd Mat Mat Mat Sto Rec Machines Accessed 31 | . 7 6 6 6 6 Terminals 24 | . 7 4 3 4 6 Fabricators . | . . . . . . Repair Stations 2 | . . . 1 1 . Recycling Units 1 | . . . 1 . . Scanalyzers 2 | . . 2 . . . Garrison Access 2 | . . . 1 1 . Total Hacks 97 | . 21 28 15 13 20 Successful 68 | . 14 22 12 8 12 Failed 29 | . 7 6 3 5 8 Catastrophic 1 | . . 1 . . . Database Lockouts . | . . . . . . Manual 47 | . 12 9 9 2 15 Terminals 75 | . 21 14 11 9 20 Fabricators . | . . . . . . Repair Stations 5 | . . . 2 3 . Recycling Units 1 | . . . 1 . . Scanalyzers 14 | . . 14 . . . Garrison Access 2 | . . . 1 1 . Terminal Hacks 26 | . 8 4 3 4 7 Part Schematic 5 | . . . . 2 3 Robot Analysis 1 | . . 1 . . . Prototype ID Bank 8 | . 5 1 1 . 1 Open Door 1 | . . . . 1 . Branch Access Points 3 | . . 1 1 1 . Terminal Index 2 | . . . 1 . 1 Fabricator Index 1 | . . . . . 1 Locate Traps 1 | . 1 . . . . Hauler Manifests 2 | . 1 1 . . . Zone Layout 2 | . 1 . . . 1 Fabricator Hacks . | . . . . . . Repair Station Hacks 4 | . . . 2 2 . Scan Component 2 | . . . 1 1 . Repair 2 | . . . 1 1 . Recycling Unit Hacks 1 | . . . 1 . . Retrieve Components 1 | . . . 1 . . Scanalyzer 11 | . . 11 . . . Insert Component 5 | . . 5 . . . Analyze 6 | . . 6 . . . Garrison Access Hacks 2 | . . . 1 1 . Seal Access 2 | . . . 1 1 . Unauthorized Hacks 24 | . 6 7 5 1 5 Terminals 21 | . 6 5 5 . 5 Botnet 5 | . 1 2 2 . . Skim 16 | . 5 3 3 . 5 Fabricators . | . . . . . . Repair Stations 1 | . . . . 1 . Patch 1 | . . . . 1 . Recycling Units . | . . . . . . Scanalyzers 2 | . . 2 . . . Extract 2 | . . 2 . . . Garrison Access . | . . . . . . Data Cores Recovered . | . . . . . . Used . | . . . . . . Hacking Detections 24 | . 6 4 4 5 5 Full Trace Events 1 | . . 1 . . . Feedback Events . | . . . . . . Feedback Blocked . | . . . . . . Robot Schematics Acquired . | . . . . . . Robots Built . | . . . . . . Authchips . | . . . . . . Time . | . . . . . . Total Robot Build Rating . | . . . . . . Part Schematics Acquired 14 | . . 9 . 2 3 Parts Built . | . . . . . . Authchips . | . . . . . . Time . | . . . . . . Total Part Build Rating . | . . . . . . Parts Repaired 2 | . . . 1 1 . Time 86 | . . . 60 26 . Parts Recycled . | . . . . . . Recycled Matter . | . . . . . . Retrieved Matter . | . . . . . . Retrieved Components 3 | . . . 3 . . Parts Scanalyzed 5 | . . 5 . . . Part Schematics Acquired 5 | . . 5 . . . Parts Damaged . | . . . . . . Bothacking | -11 -10 -9 -8 -8 -8 ------------ Run | Yrd Mat Mat Mat Sto Rec Used RIF Installer . | . . . . . . Robots Hacked . | . . . . . . Non-combat . | . . . . . . Combat . | . . . . . . Robot Hacks Applied . | . . . . . . Relay Couplers Released . | . . . . . . Fabnet Peak Effective % . | . . . . . . Robots Rewired 13 | . . . . . 13 Allies Hacked . | . . . . . . Hacks Repelled . | . . . . . . Allies | -11 -10 -9 -8 -8 -8 -------- Run | Yrd Mat Mat Mat Sto Rec Total Allies 13 | . . . . . 13 Largest Group 11 | . . . . . 11 Highest-Rated Group 153 | . . . . . 153 Highest-Rated Ally 27 | . . . . . 27 Total Orders . | . . . . . . Ally Attacks 32 | . . . . . 32 Total Damage 438 | . . . . . 438 Kills 4 | . . . . . 4 Allies Corrupted . | . . . . . . Allies Melted . | . . . . . . Intel | -11 -10 -9 -8 -8 -8 ------- Run | Yrd Mat Mat Mat Sto Rec Robot Analysis Total 1 | . . 1 . . . Derelict Logs Recovered . | . . . . . . Drone Launches . | . . . . . . Drone Recoveries . | . . . . . . Exploration | -11 -10 -9 -8 -8 -8 ------------- Run | Yrd Mat Mat Mat Sto Rec Turns Passed 6811 | 4 1263 1581 1013 926 2024 Spaces Moved 3104 | 1 748 785 361 415 794 Core 4 | . . . 4 . . Treads 2961 | 1 748 785 218 415 794 Legs 127 | . . . 127 . . Wheels 12 | . . . 12 . . Hover . | . . . . . . Flight . | . . . . . . Fastest Speed 125 | 160 160 160 125 155 236 Average Speed 183 | 160 160 160 187 163 236 Slowest Speed 400 | 160 160 160 400 236 238 Overloaded Moves . | . . . . . . Propulsion Burnouts . | . . . . . . Robots Hopped . | . . . . . . Cave-ins Triggered . | . . . . . . Exploration Rate (%) 60 | 2 82 70 35 78 95 Regions Visited 5 Branch Regions 2 Pre-discovered Areas 1 | . . . . . 1 Known Exits Taken 3 | . . 1 1 1 . Unknown Exits Taken 2 | 1 1 . . . . Scrap Searched . | . . . . . . Spaces Dug . | . . . . . . Terrain Destroyed 1 | . . 1 . . . Melee . | . . . . . . Projectile 1 | . . 1 . . . AOE . | . . . . . . Terrain Rammed . | . . . . . . Walls Destroyed . | . . . . . . Machines Disabled . | . . . . . . Actions | -11 -10 -9 -8 -8 -8 --------- Run | Yrd Mat Mat Mat Sto Rec Total 3824 | 6 780 971 572 562 933 Wait 202 | . . 36 78 61 27 Move 3099 | . 747 784 360 414 794 Hop . | . . . . . . Pick Up 42 | . 7 18 10 2 5 Fast Attach 28 | . 3 5 14 6 . Attach 16 | 2 . 2 9 3 . Detach 3 | . . 1 2 . . Swap 45 | . 2 21 6 10 6 Drop 59 | 4 2 28 14 4 7 Fire 225 | . 17 76 62 59 11 Melee 11 | . . . 11 . . Ram . | . . . . . . Kick . | . . . . . . Crush 16 | . 2 . 6 3 5 Escape Stasis . | . . . . . . Rewire 78 | . . . . . 78 Trap . | . . . . . . Miscellaneous . | . . . . . . Route ------- -11/Scrapyard -10/Materials (discovered 4 exits: *Mat x3 / [*Min]) -9/Materials (discovered 5 exits: *Mat x3 / *Min x2) -8/Materials (discovered 2 exits: [*Fac] / *Sto) -8/Storage (discovered 2 exits: [*Fac] / *Rec) -8/Recycling (discovered 2 exits: [*Fac] / *Scr) History --------- Turn | Location | Event 5 | -11/Scrapyard | Discovered new exit (range 0) 5 | -11/Scrapyard | Entered Materials 166 | -10/Materials | Discovered new exit (range 4) 324 | -10/Materials | Build established: Mutant 681 | -10/Materials | Discovered new exit (range 11) 702 | -10/Materials | Discovered new exit (range 16) 797 | -10/Materials | Discovered new exit (range 9) 1260 | -10/Materials | Learned location of 3 exits from Materials 1268 | -10/Materials | Entered another Materials area 1268 | -9/Materials | Evolved 2 slots: Propulsion x1, Utility x1 1269 | -9/Materials | Identified exit to Mines 1270 | -9/Materials | Identified exit to Materials 1808 | -9/Materials | Build established: Scavenger-Mutant 2630 | -9/Materials | Build established: Mutant 2849 | -9/Materials | Entered another Materials area 2849 | -8/Materials | Evolved 2 slots: Propulsion x1, Utility x1 2965 | -8/Materials | Identified exit to Storage 3020 | -8/Materials | Garrison activated, responded to threat 3065 | -8/Materials | Discovered new exit (range 8) 3141 | -8/Materials | Core integrity fell below 50% 3167 | -8/Materials | Lost 9 parts (1p5n2u1w) 3169 | -8/Materials | Destroyed 8 combat bots 3215 | -8/Materials | Build established: Hacker-Mutant 3754 | -8/Materials | Core integrity fell below 20% 3847 | -8/Materials | Repaired Enh. Autogun 3862 | -8/Materials | Entered Storage 3887 | -8/Storage | Build established: Scavenger-Mutant 3963 | -8/Storage | Repaired Lgt. Armor Plating 4012 | -8/Storage | Garrison activated, responded to threat 4312 | -8/Storage | Identified exit to Recycling 4326 | -8/Storage | Discovered new exit (range 9) 4781 | -8/Storage | Used back door to open Recycling access 4788 | -8/Storage | Entered Recycling 5635 | -8/Recycling | Build established: Commander-Mutant 6281 | -8/Recycling | Discovered new exit (range 16) 6314 | -8/Recycling | Learned location of 1 exit from Storage 6382 | -8/Recycling | Scanned before Scraplab entrance 6387 | -8/Recycling | Identified exit to Scraptown 6417 | -8/Recycling | Entered Scraplab 6451 | -8/Recycling | Learned 4 Factory zone layouts 6504 | -8/Recycling | Learned Factory repair station intel 6545 | -8/Recycling | Learned Factory stockpile data 6591 | -8/Recycling | Learned Storage trap positions 6812 | -8/Recycling | Destroyed by D-53 Grenadier with Mini Grenade Launcher Last Messages --------------- 06790_ Destroyed Lgt. Deuterium Engine. 06792_ U-05 Engineer lays Concrete. 06792_ Defender 3b destroyed. 06793_ G-47 Trooper destroyed. 06794_ R-06 Scavenger collects Hvy. Assault Rifle. 06795_ The unstable cave ceiling collapses. 06795_ U-05 Engineer builds a Door. 06798_ R-06 Scavenger collects Heat Sink. 06800_ Critical hit (Burn: +37). 06800_ Penetrated by Slug. 06802_ Acquired 16 matter. 06803_ Penetrated by Slug. 06804_ The unstable cave ceiling collapses. 06804_ R-06 Scavenger collects Imp. Heat Sink. 06804_ G-47 Trooper destroyed. 06804_ U-05 Engineer lays Concrete. 06805_ Acquired 4 matter. 06805_ U-05 Engineer builds a Wall. 06806_ H-55 Commando destroyed. 06810_ U-05 Engineer lays Concrete. Map ----- +----------------------------------------------------+ | | | | | | | | | | | | | ?????????????????????????????????????????????????? | | ?????????????????????????????????????????????????? | | ?????????????????????????????????????????????????? | | ?????????????????????????????????????????????????? | | ?????????????????????????????????????????????????? | | ?????????????????????????????????????????????????? | | ?????????????????????????????????????????????????? | | ?????????????????????????????????????????????????? | | ?????????????????????????????????????????????????? | | ?????????????????????????????????????????????????? | | ?????????????????????????????????????????????????? | | ?????????????????????????????????????????????????? | | ??????????###############????????????????????????? | | ??????????# ]! ?????????????????????????? | | ??????????#! !! / ???????????????????????????? | | ??????????# !%%/= ]????????????????????????????? | | ??????????# !%!% ??????????????????????????### | | ??????????#######+##########??#######??????????# | | ???????????????# %d # #### ############ | | ???????????????# "%%%* @ | | ???????????????# "T =%% T | | ???????????????# % u r | | ???????????????# # # ### ############## | | ????????????######/##########?#######????????#[ / | | ????????????# #???????????????????# | | ????????????# #???????????????????# ! | | ???#####????# #???????????????????# | | ??##"T"###??# #???????????????????# | | ??# #??# #???????????????????#| | | ??# "" #?## #???????????????????#[ | | ??# T" #?# #???????????????????#!* | | ??# "" #?## #???????????????????##### | | ??# #??# #???????????????????????? | | ??# """ #### #???????????????????????? | | ??# """ ""## #???????????????????????? | | ??# """ Y"## #???????????????????????? | | ??# ""###########+###???????????????????????? | | ??# """ ###?????????# #?????????????????????????? | | ??# """ #???????????# #?????????????????????????? | | ??# """ #???????????# ##############????????????? | | #?# #???????????# # ! %#????????????? | | #####+################ # ! ! #????????????? | | # ! != !#????????????? | | / #?##########?? | +----------------------------------------------------+ Best States ------------- Heat Dissipation 50 Coolant Potential 50 Energy Generation 18 Energy Capacity 265 Matter Stores 300 Matter Capacity 300 Sight Range 16 Terrain Scan Density 10 Armor Coverage 375 Resistance: KI 20 Resistance: TH 20 Resistance: EX 20 Resistance: EM 20 Resistance: I 20 Resistance: S 20 Resistance: P 20 Evasion (%) 40 Recoil Reduction 4 Offensive Hacking 20 Item Schematics ----------------- Imp. Ion Engine | -9/Materials | Scanalyzed Hrd. Light Armor Plating | -9/Materials | Scanalyzed Spread Laser | -9/Materials | Scanalyzed Hvy. Assault Rifle | -9/Materials | Scanalyzed Hcp. Matter Pod | -9/Materials | Extracted Visual Processing Unit | -9/Materials | Extracted Imp. Flight Unit | -9/Materials | Extracted Hacking Suite | -9/Materials | Scanalyzed Tractor Beam | -9/Materials | Extracted Hrd. Medium Armor Plating | -8/Storage | Hacked Lgt. Deuterium Engine | -8/Storage | Hacked Force Field | -8/Recycling | Hacked Great Maul | -8/Recycling | Hacked Imp. System Restoration Module | -8/Recycling | Hacked Robot Schematics ------------------ None Fabricated ------------ Nothing Alien Tech Used ----------------- None Achievements -------------- None Challenges ------------ None Game ------ Seed SurgeNeutrinoMembrane Manual? 0 Play Time 00:44:28 Cumulative 413.2 hours Start 2024.09.24 @ 12:37:07 End 2024.09.24 @ 13:43:02 Sessions 1 Manual Loads 0 Difficulty Adventurer Special Mode None Game No. 303 Rogue 63 Adventurer 214 Explorer 26 Win Type - Total 2 Types 2/0/0/0/0/0/0/0/0 Lore% 81 Gallery% 80 Achievement% 69 Wizard Run 0 Options --------- Layout 2 ASCII 0 Keyboard 0 Movement Mouse Keybinds 0 Fullscreen 0 Font 18/CogNarrow Map View 64x51 Zoom Use 0% Tactical HUD 1 Map Filters NONE Filters BRIGHTNESS(115)|SATURATION(100)|LOW_CONTRAST(0,16,30) Steam 1 RUN: 44eca7cd-2b64-4dd4-834e-328db089f790